Cogmind - Beta 14 @@@ ROGUE MODE // 2024.08.29 @ 01:59:57 Player: J1ang-5h1 Result: Destroyed by Y-54 Guardian with Flak Gun Performance ------------- Evolutions (0) 0 Regions Visited (3) 600 Robots Destroyed (44) 220 Value Destroyed (1166) 1166 Prototype IDs (13) 260 Alien Tech Used (0) 0 Bonus (0) 0 TOTAL SCORE: 2246 Bonus ------- None Cogmind --------- Core Integrity 0/250 Matter 220/300 Energy 200/200 System Corruption 0% Temperature Cool (58) Movement Core (600) Ox11 Location -7/Recycling Parts ------- > --- POWER (1) -------- Subdweller Power Source > --- PROPULSION (2) --- (None) > --- UTILITY (2) ------ Large Storage Unit Light Armor Plating > --- WEAPON (2) ------- Subdweller Shrapnel Launcher > --- INVENTORY (15) --- Subdweller Monowheel Humpback Large Battery (200) Improved Terrain Scanner Advanced ECM Suite Scrap Shield Rainbow Chip Subdweller Beam Cannon Subdweller Beam Cannon Subdweller Machine Gun Rocket Launcher Subdweller Shrapnel Launcher Peak State ------------ > --- POWER ------------ Subdweller Power Source > --- PROPULSION ------- Improved Treads Spiked Treads > --- UTILITY ---------- Large Storage Unit Improved Terrain Scanner > --- WEAPON ----------- Subdweller Laser Subdweller Beam Cannon > --- INVENTORY -------- Subdweller Power Source Subdweller Monowheel Large Battery Light Armor Plating Light Armor Plating Light Armor Plating Light Armor Plating Light Armor Plating Scrap Shield Rainbow Chip Subdweller Laser Subdweller Machine Gun Rocket Launcher Subdweller Shrapnel Launcher [Rating: 17] Favorites ----------- Power Subdweller Power Source Engine Subdweller Power Source Propulsion Improved Treads Treads Improved Treads Leg Aluminum Leg Utility Large Storage Unit Device Improved Terrain Scanner Storage Large Storage Unit Protection Light Armor Plating Weapon Assault Rifle Energy Gun Subdweller Laser Energy Cannon Subdweller Beam Cannon Ballistic Gun Assault Rifle Launcher Rocket Launcher Build | -11 -10 -10 -7 ------- Run | Yrd Mat Sub Rec Slots Evolved . | . . . . Power . | . . . . Propulsion . | . . . . Utility . | . . . . Weapon . | . . . . Parts Attached 57 | 2 16 35 4 Power 7 | . 2 5 . Engine 7 | . 2 5 . Core . | . . . . Reactor . | . . . . Propulsion 6 | . 3 3 . Treads 6 | . 3 3 . Leg . | . . . . Wheel . | . . . . Hover . | . . . . Flight . | . . . . Utility 12 | 1 3 6 2 Device 5 | 1 1 3 . Storage 2 | . 1 1 . Processor . | . . . . Hackware . | . . . . Protection 5 | . 1 2 2 Artifact . | . . . . Weapon 32 | 1 8 21 2 Energy Gun 6 | . . 5 1 Energy Cannon 3 | . . 3 . Ballistic Gun 11 | 1 4 6 . Ballistic Cannon . | . . . . Launcher 12 | . 4 7 1 Special Weapon . | . . . . Impact Weapon . | . . . . Slashing Weapon . | . . . . Piercing Weapon . | . . . . Special Melee Weapon . | . . . . Unidentified Prototypes . | . . . . Parts Lost 9 | . 2 3 4 Power 1 | . 1 . . Propulsion 3 | . . 1 2 Utility 3 | . 1 1 1 Weapon 2 | . . 1 1 Highest Loss Streak 4 | . 2 2 4 To Critical Strikes . | . . . . Average Slot Usage (%) 98 | . 97 99 99 Engine 14 | . 14 14 14 Treads 27 | . 27 28 27 Device 9 | . 9 9 12 Storage 14 | . 14 14 14 Protection 3 | . 2 3 1 Energy Gun 6 | . . 7 11 Energy Cannon 5 | . . 7 2 Ballistic Gun 14 | . 27 10 13 Launcher 1 | . . 2 . Peak Build Rating 17 | 7 12 17 17 Average Rating 13 | 6 10 14 16 On Entrance 10 | 6 7 11 17 Naked Turns . | . . . . Heaviest Build 44 | 12 33 44 40 Greatest Support 46 | 20 46 46 43 Greatest Overweight (x) 3 | . 3 1 1 Average Overweight (x) . | . . . . Largest Inventory Capacity 15 | 8 15 15 15 Average Capacity 14 | 8 12 15 15 Most Carried 15 | 8 15 15 15 Average Carried 13 | 6 11 14 14 Final Capacity 15 | 8 15 15 15 Final Carried 15 | 7 15 15 14 Class Distribution -------------------- 96% | Mutant 3% | Scavenger-Mutant Dominant Class ---------------- Mutant | -10/Materials Mutant | -10/Subcaves Mutant | -7/Recycling Resources | -11 -10 -10 -7 ----------- Run | Yrd Mat Sub Rec Matter Collected 1671 | 296 436 877 62 Remotely . | . . . . Salvage Created 1430 | 157 475 715 83 Parts 104 | 6 39 55 4 Haulers Intercepted 2 | . 2 . . Recyclers Shooed 1 | . 1 . . Parts Field Recycled . | . . . . Retrieved Matter . | . . . . Parts Self-Destructed 10 | . . 10 . Prevented . | . . . . Kills | -11 -10 -10 -7 ------- Run | Yrd Mat Sub Rec Combat Hostiles Destroyed 35 | . 14 19 2 Guns 18 | . 7 10 1 Cannons 2 | . . 2 . AOE 14 | . 7 6 1 Classes Destroyed 11 | 2 6 2 1 Worker 1 | . 1 . . Builder 1 | . 1 . . Tunneler 3 | 3 . . . Hauler 2 | . 2 . . Recycler 1 | 1 . . . Watcher 1 | . 1 . . Swarmer 10 | . 6 4 . Grunt 8 | . 8 . . Sentry 2 | . . . 2 Artisan 1 | . . 1 . Subdweller 15 | . . 15 . Best Kill Streak 4 | 3 4 3 1 Combat Bots Only 3 | . 3 3 1 Max Kills in Single Turn 2 | 1 2 2 1 Gunslinging . | . . . . Exploded 2 | . 2 2 1 Melee . | . . . . Uniques/NPCs Destroyed . | . . . . Combat | -11 -10 -10 -7 -------- Run | Yrd Mat Sub Rec Hostile Shots Fired 289 | . 66 79 144 Missed 102 | . 19 31 52 Damage Taken 2085 | . 512 900 673 Core 252 | . 81 42 129 Absorbed by Shields . | . . . . Regen/Repaired (Parts) 71 | . 71 . . Core Remaining (%) 100 | 100 . . . Volleys Fired 184 | 20 63 92 9 Largest 2 | 2 2 2 2 Hottest 160 | 60 40 160 90 Shots Fired 321 | 40 115 152 14 Gun 257 | 40 104 103 10 Cannon 29 | . . 29 . Launcher 35 | . 11 20 4 Special . | . . . . Kinetic 233 | 39 104 81 9 Thermal 57 | 1 . 51 5 Explosive 31 | . 11 20 . Electromagnetic . | . . . . Robot Hit Streak 15 | 6 10 15 3 Robot Miss Streak 4 | 4 4 4 3 Penetration Max . | . . . . Secondary Targets . | . . . . Shots Hit Robots 193 | 24 67 94 8 Core Hits 81 | 6 29 40 6 Critical Kills 2 | . 1 1 . Critical Parts Destroyed 3 | . 2 1 . Critical Strikes 5 | . 3 2 . Meltdown 1 | . . 1 . Destroy 4 | . 3 1 . Melee Attacks . | . . . . Impact . | . . . . Slashing . | . . . . Piercing . | . . . . Sneak Attacks . | . . . . Combat Hostiles . | . . . . Follow-up Attacks . | . . . . Damage Inflicted 4116 | 264 1293 2100 459 Guns 2278 | 264 762 1138 114 Cannons 251 | . . 251 . Explosions 1587 | . 531 711 345 Melee . | . . . . Ramming . | . . . . Kinetic 2212 | 253 762 780 417 Thermal 662 | 11 . 609 42 Explosive 1242 | . 531 711 . Electromagnetic . | . . . . Impact . | . . . . Slashing . | . . . . Piercing . | . . . . Highest Corruption . | . . . . Average Corruption . | . . . . Corruption Purged . | . . . . Corruption Blocked . | . . . . Overload Shots . | . . . . Overflow Damage . | . . . . Projectiles . | . . . . Explosions . | . . . . Melee . | . . . . Knockbacks . | . . . . Impact . | . . . . Kinetic . | . . . . Secondary . | . . . . Self-Inflicted Damage 79 | . 28 38 13 Shots 4 | . 1 2 1 Rammed . | . . . . Targets Rammed . | . . . . Kicked . | . . . . Crushed . | . . . . Highest Temperature 168 | . 21 54 168 Average Temperature 36 | . 7 28 69 Received Heat Transfer 471 | . 189 120 162 Siege Activations . | . . . . Robots Corrupted . | . . . . Combat Hostiles . | . . . . Parts Fried . | . . . . Impact Corruptions . | . . . . Robots Melted 1 | . . 1 . Combat Hostiles 1 | . . 1 . Parts Melted 2 | . . 2 . Heat Transferred 833 | 25 . 758 50 Parts Sabotaged . | . . . . Parts Stolen . | . . . . Parts Stripped . | . . . . Power Chain Reactions . | . . . . Alert | -11 -10 -10 -7 ------- Run | Yrd Mat Sub Rec Peak Influence 229 | 20 229 . 110 Initial 24 | . 13 . 24 Average 64 | 8 79 . 46 Maximum Alert Level 1 | . 1 . . Low Security (%) 96 | 100 94 . 100 Level 1 3 | . 5 . . Level 2 . | . . . . Level 3 . | . . . . Level 4 . | . . . . Level 5 . | . . . . High Security . | . . . . Max Security . | . . . . Squads Dispatched 3 | . 3 . . Investigation 3 | . 3 . . Extermination . | . . . . Reinforcement . | . . . . Assault . | . . . . Garrison . | . . . . Intercept . | . . . . Searches Triggered . | . . . . Construction Impeded . | . . . . Haulers Reinforced . | . . . . Active Scanning Responses . | . . . . Cargo Convoy Interrupts . | . . . . Stealth | -11 -10 -10 -7 --------- Run | Yrd Mat Sub Rec Distress Signals 2 | . 2 . . Communications Jammed . | . . . . Distress Signals . | . . . . Times Spotted 54 | . 26 25 3 Peak Tracking Total 5 | . 3 5 3 Tactical Retreats 3 | . 2 1 . Traps | -11 -10 -10 -7 ------- Run | Yrd Mat Sub Rec Traps Triggered 1 | . 1 . . Indirectly . | . . . . Trap Hack Attempts . | . . . . Triggered . | . . . . Disarmed . | . . . . Reprogrammed . | . . . . Reused . | . . . . Traps Extracted . | . . . . Installed . | . . . . Triggered . | . . . . Machines | -11 -10 -10 -7 ---------- Run | Yrd Mat Sub Rec Machines Disabled 4 | . 2 1 1 Max in Single Turn 1 | . 1 1 1 Machines Repaired . | . . . . Machines Dismantled . | . . . . Machines Sabotaged . | . . . . Overloaded Fab Kills . | . . . . Hacking | -11 -10 -10 -7 --------- Run | Yrd Mat Sub Rec Machines Accessed 16 | . 6 2 8 Terminals 7 | . 3 . 4 Fabricators . | . . . . Repair Stations 1 | . 1 . . Recycling Units 6 | . 2 . 4 Scanalyzers . | . . . . Garrison Access . | . . . . Total Hacks 41 | . 20 5 16 Successful 24 | . 8 5 11 Failed 16 | . 11 . 5 Catastrophic 1 | . . . 1 Database Lockouts 1 | . 1 . . Manual 22 | . 14 . 8 Terminals 20 | . 13 . 7 Fabricators . | . . . . Repair Stations 3 | . 3 . . Recycling Units 13 | . 4 . 9 Scanalyzers . | . . . . Garrison Access . | . . . . Terminal Hacks 9 | . 2 5 2 Record 4 | . . 4 . Robot Analysis 3 | . 2 . 1 Prototype ID Bank 1 | . . . 1 Derelict Proto ID Bank 1 | . . 1 . Fabricator Hacks . | . . . . Repair Station Hacks 2 | . 2 . . Scan Component 1 | . 1 . . Repair 1 | . 1 . . Recycling Unit Hacks 4 | . . . 4 Report Inventory 3 | . . . 3 Retrieve Components 1 | . . . 1 Scanalyzer . | . . . . Garrison Access Hacks . | . . . . Unauthorized Hacks 9 | . 4 . 5 Terminals 3 | . 2 . 1 Botnet 2 | . 1 . 1 Disrupt 1 | . 1 . . Fabricators . | . . . . Repair Stations . | . . . . Recycling Units 6 | . 2 . 4 Tunnel 6 | . 2 . 4 Scanalyzers . | . . . . Garrison Access . | . . . . Data Cores Recovered . | . . . . Used . | . . . . Hacking Detections 11 | . 5 . 6 Full Trace Events . | . . . . Feedback Events . | . . . . Feedback Blocked . | . . . . Robot Schematics Acquired . | . . . . Robots Built . | . . . . Authchips . | . . . . Time . | . . . . Total Robot Build Rating . | . . . . Part Schematics Acquired . | . . . . Parts Built . | . . . . Authchips . | . . . . Time . | . . . . Total Part Build Rating . | . . . . Parts Repaired 1 | . 1 . . Time 32 | . 32 . . Parts Recycled . | . . . . Recycled Matter . | . . . . Retrieved Matter . | . . . . Retrieved Components 3 | . . . 3 Parts Scanalyzed . | . . . . Part Schematics Acquired . | . . . . Parts Damaged . | . . . . Bothacking | -11 -10 -10 -7 ------------ Run | Yrd Mat Sub Rec Used RIF Installer . | . . . . Robots Hacked . | . . . . Non-combat . | . . . . Combat . | . . . . Robot Hacks Applied . | . . . . Relay Couplers Released . | . . . . Fabnet Peak Effective % . | . . . . Robots Rewired . | . . . . Allies Hacked . | . . . . Hacks Repelled . | . . . . Allies | -11 -10 -10 -7 -------- Run | Yrd Mat Sub Rec Total Allies . | . . . . Largest Group . | . . . . Highest-Rated Group . | . . . . Highest-Rated Ally . | . . . . Total Orders . | . . . . Ally Attacks . | . . . . Total Damage . | . . . . Kills . | . . . . Allies Corrupted . | . . . . Allies Melted . | . . . . Intel | -11 -10 -10 -7 ------- Run | Yrd Mat Sub Rec Robot Analysis Total 3 | . 2 . 1 Derelict Logs Recovered 1 | . . 1 . Drone Launches . | . . . . Drone Recoveries . | . . . . Exploration | -11 -10 -10 -7 ------------- Run | Yrd Mat Sub Rec Turns Passed 6803 | 118 1429 4427 829 Spaces Moved 3743 | 48 742 2460 493 Core 9 | . 9 . . Treads 3686 | . 733 2460 493 Legs 48 | 48 . . . Wheels . | . . . . Hover . | . . . . Flight . | . . . . Fastest Speed 120 | 120 160 160 160 Average Speed 160 | 120 162 160 160 Slowest Speed 260 | 120 240 250 260 Overloaded Moves . | . . . . Propulsion Burnouts . | . . . . Robots Hopped . | . . . . Cave-ins Triggered . | . . . . Exploration Rate (%) 65 | 6 83 97 76 Regions Visited 3 Branch Regions 2 Pre-discovered Areas 8 | . 2 2 4 Known Exits Taken 1 | . . 1 . Unknown Exits Taken 2 | 1 1 . . Scrap Searched 14 | . . 14 . Spaces Dug 59 | . 38 21 . Terrain Destroyed 265 | . 82 130 53 Melee . | . . . . Projectile 11 | . . 11 . AOE 254 | . 82 119 53 Terrain Rammed . | . . . . Walls Destroyed . | . . . . Machines Disabled . | . . . . Actions | -11 -10 -10 -7 --------- Run | Yrd Mat Sub Rec Total 4225 | 71 853 2784 517 Wait 170 | . 4 157 9 Move 3740 | 47 741 2459 493 Hop . | . . . . Pick Up 40 | 2 17 20 1 Fast Attach 5 | . 5 . . Attach 10 | 1 1 7 1 Detach . | . . . . Swap 42 | 1 10 28 3 Drop 34 | . 12 21 1 Fire 184 | 20 63 92 9 Melee . | . . . . Ram . | . . . . Kick . | . . . . Crush . | . . . . Escape Stasis . | . . . . Rewire . | . . . . Trap . | . . . . Miscellaneous . | . . . . Route ------- -11/Scrapyard -10/Materials (discovered 4 exits: [*Mat x2] / [*Min] / *Sub) -10/Subcaves (discovered 3 exits: [*Mat x2] / *Rec) -7/Recycling History --------- Turn | Location | Event 12 | -11/Scrapyard | Discovered new exit (range 3) 119 | -11/Scrapyard | Entered Materials 322 | -10/Materials | Build established: Mutant 475 | -10/Materials | Discovered new exit (range 13) 514 | -10/Materials | Discovered new exit (range 13) 1150 | -10/Materials | Repaired Imp. Treads? 1384 | -10/Materials | Discovered new exit (range 10) 1391 | -10/Materials | Central database locked down 1541 | -10/Materials | Discovered new exit (range 4) 1548 | -10/Materials | Entered Subcaves 1598 | -10/Subcaves | Visited Clippyterm 1603 | -10/Subcaves | Learned location of Extension (-4) 1603 | -10/Subcaves | Learned Factory emergency access door positions 1797 | -10/Subcaves | Learned location of Zion (-6) 1797 | -10/Subcaves | Met a Zionite searching for "candidates" 2506 | -10/Subcaves | Discovered new exit (range 6) 3030 | -10/Subcaves | Ambushed by angry Subdweller bent on revenge 3166 | -10/Subcaves | Disturbed a concealed Subdweller 3514 | -10/Subcaves | Shifting Twisted Machinery released Sub. Beam Cannon 3515 | -10/Subcaves | Discovered new exit (range 8) 3520 | -10/Subcaves | Identified exit to Recycling 3721 | -10/Subcaves | Visited 4L-MR0's lab 3748 | -10/Subcaves | Found Rainbow Chip 4268 | -10/Subcaves | Shifting Twisted Machinery released Sub. Optics 5975 | -10/Subcaves | Entered Recycling 6742 | -7/Recycling | Core integrity fell below 50% 6796 | -7/Recycling | Core integrity fell below 20% 6804 | -7/Recycling | Destroyed by Y-54 Guardian with Flak Gun Last Messages --------------- >>Force(Tunnel) DISCOVERED[-4/Hub_04(d)] 06625_ Dropped Lgt. Armor Plating. 06627_ Acquired Adv. ECM Suite. 06645_ R-06 Scavenger collects Lgt. Armor Plating. 06726_ Connecting with Terminal... 06728_ Y-54 Guardian springs to life. 06752_ Y-54 Guardian destroyed. 06758_ R-06 Scavenger collects Imp. Deuterium Engine. 06761_ R-06 Scavenger collects Lgt. Treads. 06761_ R-06 Scavenger collects Flak Gun. 06761_ Acquired 20 matter. 06791_ Lgt. Armor Plating destroyed. 06791_ Imp. Treads destroyed. 06795_ Spk. Treads destroyed. 06796_ Terminal disabled. 06798_ Sub. Laser destroyed. 06802_ Y-54 Guardian destroyed. Map ----- +----------------------------------------------------+ | ### #???##???????????????????????????????????? | | ""# #############????????????????????????????? | | ""# # #????????????????????????????? | | T"# # #????????????????????????????? | | ""# # #????????????????????????????? | | ""# # = #????????????????????????????? | | ### # ! #????????????????????????????? | | # #????????????????????????????? | | + #?????????#??????????????????? | | #!* %[ ] #?? ???????????????????????? | | # % #?# ???????????????????????? | | ##### # ! #?# ???????????????????????? | | ?#??# # ! #?# ???????????????????????? | | #???# # !! #?# ???????????????????????? | | ????# # ! #?# ##?????????????????????? | | ????# ########+####?# #??????????????????????? | | #???# ######## #????# #??????????????????????? | | ????# #?#??# #???#??????????????????? | | ?#??# ######## #????# #??????????????????????? | | ???## #?#????# ##???# #??????????????????????? | | ????#####??????# ##???# ##?????????????????????? | | ?????????????#?# #????# ??????????????????????? | | ????#?##########+###??# #?#????????????????????? | | #?????# #??# ###????????????????????? | | ??#???# #?## [ #????????????????????? | | ?#????# #?#; @ [#????????????????????? | | ?#????# #?#; [[#????????????????????? | | ####### """ """ #?#; ;;#????????????????????? | | + """"""""" #?#; ;#????????????????????? | | # """"" #?# ;#????????????????????? | | # #? ?#??????????????????? | | + """ """ # #???????????????????? | | ##### """"""""" # ???????????????????? | | #???# """"" # #??????????????????? | | #???# # Y% ##??????????????????? | | #############+###### ???????????????????? | | ?# u ???????????????????? | | # ##?#????????????????? | | ?# #???????????????????? | | ## ########+##+##### ###???????????????????? | | #????# #?#######?????????????????????? | | ## #????# #?????????????????????????????? | | ?# #????# ##????????????????????????????? | | ## #????# #??????#?????????????????????? | | "" #????# ##??????#?????????????????????? | | "Y #????# ##???#????????????????????????? | | "" ###### #?????????????????????????????? | | ## + #??#?#??????????#?????????????? | | ?# ###### #?????#??????????????????????? | | ?# #????###########???????????#????????????????? | +----------------------------------------------------+ Best States ------------- Heat Dissipation 25 Energy Generation 15 Energy Capacity 400 Matter Stores 300 Matter Capacity 300 Sight Range 16 Terrain Scan Range 16 Terrain Scan Density 10 ECM Strength 1 Armor Coverage 150 Evasion (%) 50 Recoil Reduction 2 Item Schematics ----------------- None Robot Schematics ------------------ None Fabricated ------------ Nothing Alien Tech Used ----------------- None Achievements -------------- None Challenges ------------ None Game ------ Seed MicrodissipatorMediumWell Manual? 0 Play Time 00:49:35 Cumulative 248.7 hours Start 2024.08.29 @ 01:10:48 End 2024.08.29 @ 01:59:57 Sessions 1 Manual Loads 0 Difficulty Rogue Special Mode None Game No. 183 Rogue 173 Adventurer 0 Explorer 10 Win Type - Total 3 Types 3/0/0/0/0/0/0/0/0 Lore% 62 Gallery% 69 Achievement% 53 Wizard Run 0 Options --------- Layout 1 ASCII 0 Keyboard 0 Movement Arrows Keybinds 1 Fullscreen 1 Font 24/Smallcaps Map View 50x35 Zoom Use 0% Tactical HUD 1 Map Filters NONE Filters NONE Steam 1 RUN: 17fb0747-798d-4cde-ae16-1173bf0d191b